{"text_format":"3","workbook":"xlsx","n_sheets":1,"sheets":["list"],"not_rendered":{"external_links":3,"defined_names":1},"read":"whole","date_system":"1900"}

{"sheet":"list","index":0,"n_rows":133,"n_cols":17,"rows_kept":133}
["№","Фамилия","Имя","Отчество","Пол",null,"Дата рождения","Участник с ОВЗ","Класс","Класс участия","Балл","Макс. Балл","Статус","Призер МЭ прошлого года","Учитель","Место работы учителя","Направления, виды практик  по технологии"]
[1,"Епишова","Ангелина","Константиновна","Ж",null,"2014-07-11","нет",3,3,39,50,"победитель",null,"Федорова Анастасия Михайловна","Муниципальное бюджетное общеобразовательное учреждение \"Многопрофильный лицей №37\" Нижнекамского муниципального района Республики Татарстан"]
[2,"Горошко","Игорь","Михайлович","М",null,"2014-01-30","нет",3,3,38,50,"призер",null,"Чумакова Елена Валерьевна","Муниципальное бюджетное общеобразовательное учреждение \"Многопрофильный лицей №37\" Нижнекамского муниципального района Республики Татарстан"]
[3,"Гасайниев","Роман","Захарович","М",null,"2014-06-04","нет",3,3,37,50,"призер",null,"Галкина Светлана Александровна","Муниципальное бюджетное общеобразовательное учреждение \"Многопрофильный лицей №37\" Нижнекамского муниципального района Республики Татарстан"]
[4,"Минеева","Ульяна","Сергеевна","Ж",null,"22.11.2013","нет",3,3,21,50,"участник",null,"Халиуллина Валентина Леонидовна","Муниципальное бюджетное общеобразовательное учреждение \"Многопрофильный лицей №37\" Нижнекамского муниципального района Республики Татарстан"]
[5,"Чугунова","Ульяна","Валерьевна","Ж",null,"2014-05-12","нет",3,3,21,50,"участник",null,"Чумакова Елена Валерьевна","Муниципальное бюджетное общеобразовательное учреждение \"Многопрофильный лицей №37\" Нижнекамского муниципального района Республики Татарстан"]
[6,"Галкин","Виктор","Сергеевич","М",null,"2013-11-10",{"$f":"'[1]Протокол ШЭ по ОБЖ'!H8","v":"нет"},{"$f":"'[1]Протокол ШЭ по ОБЖ'!I8","v":3},{"$f":"'[1]Протокол ШЭ по ОБЖ'!J8","v":3},21,50,{"$f":"'[1]Протокол ШЭ по ОБЖ'!M8","v":"участник"},null,{"$f":"'[1]Протокол ШЭ по ОБЖ'!O8","v":"Чумакова Елена Валерьевна"},"Муниципальное бюджетное общеобразовательное учреждение \"Многопрофильный лицей №37\" Нижнекамского муниципального района Республики Татарстан"]
[7,"Хамитов","Ислам","Рафисович","М",null,"2014-06-24","нет",3,3,20,50,"участник",null,"Федорова Анастасия  Михайловна","Муниципальное бюджетное общеобразовательное учреждение \"Многопрофильный лицей №37\" Нижнекамского муниципального района Республики Татарстан"]
[8,"Васильева","Марьям","Руслановна","Ж",null,"02.03.2014","нет",3,3,20,50,"участник",null,"Сотникова Ольга Степановна","Муниципальное бюджетное общеобразовательное учреждение \"Многопрофильный лицей №37\" Нижнекамского муниципального района Республики Татарстан"]
[10,"Волков","Родион","Иванович","М",null,"2013-10-04","нет",3,3,20,50,"участник",null,"Галкина Светлана Александровна","Муниципальное бюджетное общеобразовательное учреждение \"Многопрофильный лицей №37\" Нижнекамского муниципального района Республики Татарстан"]
[11,"Становов","Илья","Евгеньевич","М",null,"2014-10-03","нет",3,3,20,50,"участник",null,"Галкина Светлана Александровна","Муниципальное бюджетное общеобразовательное учреждение \"Многопрофильный лицей №37\" Нижнекамского муниципального района Республики Татарстан"]
[12,"Минибаев","Радмир","Ринатович","М",null,"2014-05-29","нет",3,3,19,50,"участник",null,"Федорова Анастасия  Михайловна","Муниципальное бюджетное общеобразовательное учреждение \"Многопрофильный лицей №37\" Нижнекамского муниципального района Республики Татарстан"]
[13,"Фатхутдинова","Амалия","Рамилевна","Ж",null,"06.01.2014","нет",3,3,18,50,"участник",null,"Халиуллина Валентина Леонидовна","Муниципальное бюджетное общеобразовательное учреждение \"Многопрофильный лицей №37\" Нижнекамского муниципального района Республики Татарстан"]
[14,"Гришин","Максим","Евгеньевич","М",null,"14.10.2014","нет",3,3,18,50,"участник",null,"Халиуллина Валентина Леонидовна","Муниципальное бюджетное общеобразовательное учреждение \"Многопрофильный лицей №37\" Нижнекамского муниципального района Республики Татарстан"]
[15,"Ямалеева","Сафина","Раилевна","Ж",null,"23.02.2014","нет",3,3,18,50,"участник",null,"Сотникова Ольга Степановна","Муниципальное бюджетное общеобразовательное учреждение \"Многопрофильный лицей №37\" Нижнекамского муниципального района Республики Татарстан"]
[16,"Михеичева","Елизавета","Евгеньевна","Ж",null,"2014-02-01","нет",3,3,18,50,"участник",null,"Федорова Анастасия  Михайловна","Муниципальное бюджетное общеобразовательное учреждение \"Многопрофильный лицей №37\" Нижнекамского муниципального района Республики Татарстан"]
[17,"Столярова","Амалия","Витальевна","Ж",null,"2014-05-30","нет",3,3,17,50,"участник",null,"Федорова Анастасия  Михайловна","Муниципальное бюджетное общеобразовательное учреждение \"Многопрофильный лицей №37\" Нижнекамского муниципального района Республики Татарстан"]
[18,"Хуснуллина","Арина","Руслановна","Ж",null,"2013-12-21","нет",3,3,15,50,"участник",null,"Федорова Анастасия  Михайловна","Муниципальное бюджетное общеобразовательное учреждение \"Многопрофильный лицей №37\" Нижнекамского муниципального района Республики Татарстан"]
[19,"Тетерина","Екатерина","Игоревна","Ж",null,"17.01.2014","нет",3,3,14,50,"участник",null,"Сотникова Ольга Степановна","Муниципальное бюджетное общеобразовательное учреждение \"Многопрофильный лицей №37\" Нижнекамского муниципального района Республики Татарстан"]
[20,"Сокольский","Кирилл","Денисович","М",null,"17.02.2014","нет",3,3,14,50,"участник",null,"Сотникова Ольга Степановна","Муниципальное бюджетное общеобразовательное учреждение \"Многопрофильный лицей №37\" Нижнекамского муниципального района Республики Татарстан"]
[21,"Тухватуллина","Аделя","Руслановна","Ж",null,"07.11.2013","нет",3,3,14,50,"участник",null,"Халиуллина Валентина Леонидовна","Муниципальное бюджетное общеобразовательное учреждение \"Многопрофильный лицей №37\" Нижнекамского муниципального района Республики Татарстан"]
[22,"Байрамова","Альвина","Ильдаровна","Ж",null,"22.05.2014","нет",3,3,13,50,"участник",null,"Сотникова Ольга Степановна","Муниципальное бюджетное общеобразовательное учреждение \"Многопрофильный лицей №37\" Нижнекамского муниципального района Республики Татарстан"]
[23,"Кутлугильдин","Надим","Риналович","М",null,"09.01.2014","нет",3,3,13,50,"участник",null,"Сотникова Ольга Степановна","Муниципальное бюджетное общеобразовательное учреждение \"Многопрофильный лицей №37\" Нижнекамского муниципального района Республики Татарстан"]
[24,"Матвеев","Тимур","Сергеевич","М",null,"2013-10-22","нет",3,3,13,50,"участник",null,"Галкина Светлана Александровна","Муниципальное бюджетное общеобразовательное учреждение \"Многопрофильный лицей №37\" Нижнекамского муниципального района Республики Татарстан"]
[25,"Сорокин","Артём","Сергеевич","М",null,"06.02.2014","нет",3,3,12,50,"участник",null,"Халиуллина Валентина Леонидовна","Муниципальное бюджетное общеобразовательное учреждение \"Многопрофильный лицей №37\" Нижнекамского муниципального района Республики Татарстан"]
[26,"Кашина","Маргарита","Максимовна","Ж",null,"2014-08-28","нет",3,3,10,50,"участник",null,"Галкина Светлана Александровна","Муниципальное бюджетное общеобразовательное учреждение \"Многопрофильный лицей №37\" Нижнекамского муниципального района Республики Татарстан"]
[27,"Зарипов","Мансур","Гаязович","М",null,"2014-04-13","нет",3,3,9,50,"участник",null,"Галкина Светлана Александровна","Муниципальное бюджетное общеобразовательное учреждение \"Многопрофильный лицей №37\" Нижнекамского муниципального района Республики Татарстан"]
[28,"Гизатуллин","Ранэль","Ильдарович","М",null,"07.12.2013","нет",3,3,9,50,"участник",null,"Халиуллина Валентина Леонидовна","Муниципальное бюджетное общеобразовательное учреждение \"Многопрофильный лицей №37\" Нижнекамского муниципального района Республики Татарстан"]
[29,"Мусин","Марат","Рустемович","М",null,"2013-07-23","нет",4,4,42,50,"победитель",null,"Конева Валентина Викторовна","Муниципальное бюджетное общеобразовательное учреждение \"Многопрофильный лицей №37\" Нижнекамского муниципального района Республики Татарстан"]
[30,"Сазутова","Виктория","Денисовна","Ж",null,"2013-06-04","нет",4,4,41,50,"призер",null,"Хамадеева Гузель Камилевна","Муниципальное бюджетное общеобразовательное учреждение \"Многопрофильный лицей №37\" Нижнекамского муниципального района Республики Татарстан"]
[31,"Исламхузина","Самира","Ильназовна","Ж",null,"2013-04-30","нет",4,4,40,50,"призер",null,"Хаметова Рамиля Раилевна","Муниципальное бюджетное общеобразовательное учреждение \"Многопрофильный лицей №37\" Нижнекамского муниципального района Республики Татарстан"]
[32,"Салахова","Ясмина","Ренатовна","Ж",null,"07.03.2013","нет",4,4,38,50,"призер",null,"Гильманова Ляйля Мукатдасовна","Муниципальное бюджетное общеобразовательное учреждение \"Многопрофильный лицей №37\" Нижнекамского муниципального района Республики Татарстан"]
[33,"Абдуллина","Эмилия","Эльмаровна","Ж",null,"2013-04-27","нет",4,4,36,50,"призер",null,"Корноухова Светлана Васильевна","Муниципальное бюджетное общеобразовательное учреждение \"Многопрофильный лицей №37\" Нижнекамского муниципального района Республики Татарстан"]
[34,"Вахитов","Радис","Ренатович","М",null,"2012-12-04","нет",4,4,18,50,"участник",null,"Конева Валентина Викторовна","Муниципальное бюджетное общеобразовательное учреждение \"Многопрофильный лицей №37\" Нижнекамского муниципального района Республики Татарстан"]
[35,"Ахунова","Каролина","Эльвировна","Ж",null,"2013-10-20","нет",4,4,18,50,"участник",null,"Хамадеева Гузель Камилевна","Муниципальное бюджетное общеобразовательное учреждение \"Многопрофильный лицей №37\" Нижнекамского муниципального района Республики Татарстан"]
[36,"Ташкина","София","Михайловна ","Ж",null,"2013-06-17","нет",4,4,18,50,"участник",null,"Хамадеева Гузель Камилевна","Муниципальное бюджетное общеобразовательное учреждение \"Многопрофильный лицей №37\" Нижнекамского муниципального района Республики Татарстан"]
[37,"Бабаев","Иван","Андреевич","М",null,"2013-10-09","нет",4,4,18,50,"участник",null,"Хамадеева Гузель Камилевна","Муниципальное бюджетное общеобразовательное учреждение \"Многопрофильный лицей №37\" Нижнекамского муниципального района Республики Татарстан"]
[38,"Яфарова","Камилла","Марсовна","Ж",null,"2013-01-15","нет",4,4,18,50,"участник",null,"Хамадеева Гузель Камилевна","Муниципальное бюджетное общеобразовательное учреждение \"Многопрофильный лицей №37\" Нижнекамского муниципального района Республики Татарстан"]
[39,"Гатиатуллина","Зарина","Дамировна ","Ж",null,"2013-04-10","нет",4,4,18,50,"участник",null,"Хамадеева Гузель Камилевна","Муниципальное бюджетное общеобразовательное учреждение \"Многопрофильный лицей №37\" Нижнекамского муниципального района Республики Татарстан"]
[40,"Самохвалова","София","Антоновна","Ж",null,"2013-10-28","нет",4,4,18,50,"участник",null,"Хамадеева Гузель Камилевна","Муниципальное бюджетное общеобразовательное учреждение \"Многопрофильный лицей №37\" Нижнекамского муниципального района Республики Татарстан"]
[41,"Петрова","Ильвина","Леонидовна","Ж",null,"2013-11-02","нет",4,4,18,50,"участник",null,"Конева Валентина Викторовна","Муниципальное бюджетное общеобразовательное учреждение \"Многопрофильный лицей №37\" Нижнекамского муниципального района Республики Татарстан"]
[42,"Шарипов","Алмаз","Эмилевич","М",null,"2013-02-05","нет",4,4,17,50,"участник",null,"Корноухова Светлана Васильевна","Муниципальное бюджетное общеобразовательное учреждение \"Многопрофильный лицей №37\" Нижнекамского муниципального района Республики Татарстан"]
[43,"Новикова","Карина","Алексеевна","Ж",null,"2013-06-07","нет",4,4,17,50,"участник",null,"Корноухова Светлана Васильевна","Муниципальное бюджетное общеобразовательное учреждение \"Многопрофильный лицей №37\" Нижнекамского муниципального района Республики Татарстан"]
[44,"Гарипова","Зухра","Зуфаровна","Ж",null,"18.04.2013","нет",4,4,16,50,"участник",null,"Хаметова Рамиля Раилевна","Муниципальное бюджетное общеобразовательное учреждение \"Многопрофильный лицей №37\" Нижнекамского муниципального района Республики Татарстан"]
[45,"Шаяхметова","Диляра","Айратовна","Ж",null,"2013-09-26","нет",4,4,16,50,"участник",null,"Корноухова Светлана Васильевна","Муниципальное бюджетное общеобразовательное учреждение \"Многопрофильный лицей №37\" Нижнекамского муниципального района Республики Татарстан"]
[46,"Шафикова","Изабелла","Руслановна","Ж",null,"2013-05-15","нет",4,4,16,50,"участник",null,"Конева Валентина Викторовна","Муниципальное бюджетное общеобразовательное учреждение \"Многопрофильный лицей №37\" Нижнекамского муниципального района Республики Татарстан"]
[47,"Ибатуллина","Аделина","Ильнаровна","Ж",null,"2013-06-25","нет",4,4,16,50,"участник",null,"Хаметова Рамиля Раилевна","Муниципальное бюджетное общеобразовательное учреждение \"Многопрофильный лицей №37\" Нижнекамского муниципального района Республики Татарстан"]
[48,"Ишмулина","Елизавета","Дмитриевна","Ж",null,"2013-11-18","нет",4,4,15,50,"участник",null,"Корноухова Светлана Васильевна","Муниципальное бюджетное общеобразовательное учреждение \"Многопрофильный лицей №37\" Нижнекамского муниципального района Республики Татарстан"]
[49,"Сабитова","Сафина","Ильнуровна","Ж",null,"06.02.2013",{"$f":"'[2]Протокол ШЭ ВОШ по предмету ЛИТ'!H3","v":"нет"},{"$f":"'[2]Протокол ШЭ ВОШ по предмету ЛИТ'!I3","v":4},{"$f":"'[2]Протокол ШЭ ВОШ по предмету ЛИТ'!J3","v":4},{"$f":"'[2]Протокол ШЭ ВОШ по предмету ЛИТ'!K3","v":15},{"$f":"'[2]Протокол ШЭ ВОШ по предмету ЛИТ'!L3","v":50},"участник",null,{"$f":"'[2]Протокол ШЭ ВОШ по предмету ЛИТ'!O3","v":"Гильманова Ляйля Мукатдасовна"},"Муниципальное бюджетное общеобразовательное учреждение \"Многопрофильный лицей №37\" Нижнекамского муниципального района Республики Татарстан"]
[50,"Ильин","Арсений","Дмитриевич","М",null,"2012-11-30","нет",4,4,15,50,"участник",null,"Хаметова Рамиля Раилевна","Муниципальное бюджетное общеобразовательное учреждение \"Многопрофильный лицей №37\" Нижнекамского муниципального района Республики Татарстан"]
[51,"Курышов","Матвей","Ильич ","М",null,"2012-11-19","нет",4,4,15,50,"участник",null,"Хамадеева Гузель Камилевна","Муниципальное бюджетное общеобразовательное учреждение \"Многопрофильный лицей №37\" Нижнекамского муниципального района Республики Татарстан"]
[52,"Байкеева","Ралина","Руслановна","Ж",null,"18.06.2013",{"$f":"'[2]Протокол ШЭ ВОШ по предмету ЛИТ'!H4","v":"нет"},{"$f":"'[2]Протокол ШЭ ВОШ по предмету ЛИТ'!I4","v":4},{"$f":"'[2]Протокол ШЭ ВОШ по предмету ЛИТ'!J4","v":4},{"$f":"'[2]Протокол ШЭ ВОШ по предмету ЛИТ'!K4","v":14},{"$f":"'[2]Протокол ШЭ ВОШ по предмету ЛИТ'!L4","v":50},{"$f":"'[2]Протокол ШЭ ВОШ по предмету ЛИТ'!M4","v":"участник"},null,{"$f":"'[2]Протокол ШЭ ВОШ по предмету ЛИТ'!O4","v":"Гильманова Ляйля Мукатдасовна"},"Муниципальное бюджетное общеобразовательное учреждение \"Многопрофильный лицей №37\" Нижнекамского муниципального района Республики Татарстан"]
[53,"Хафизова","Амилия","Алмазовна","Ж",null,"29.09.2013",{"$f":"'[2]Протокол ШЭ ВОШ по предмету ЛИТ'!H5","v":"нет"},{"$f":"'[2]Протокол ШЭ ВОШ по предмету ЛИТ'!I5","v":4},{"$f":"'[2]Протокол ШЭ ВОШ по предмету ЛИТ'!J5","v":4},{"$f":"'[2]Протокол ШЭ ВОШ по предмету ЛИТ'!K5","v":14},{"$f":"'[2]Протокол ШЭ ВОШ по предмету ЛИТ'!L5","v":50},{"$f":"'[2]Протокол ШЭ ВОШ по предмету ЛИТ'!M5","v":"участник"},null,{"$f":"'[2]Протокол ШЭ ВОШ по предмету ЛИТ'!O5","v":"Гильманова Ляйля Мукатдасовна"},"Муниципальное бюджетное общеобразовательное учреждение \"Многопрофильный лицей №37\" Нижнекамского муниципального района Республики Татарстан"]
[54,"Крылов","Егор","Дмитриевич","М",null,"2013-01-30","нет",4,4,14,50,"участник",null,"Хамадеева Гузель Камилевна","Муниципальное бюджетное общеобразовательное учреждение \"Многопрофильный лицей №37\" Нижнекамского муниципального района Республики Татарстан"]
[55,"Сабирзянов","Ренат","Ленарович","М",null,"2013-05-21","нет",4,4,14,50,"участник",null,"Хамадеева Гузель Камилевна","Муниципальное бюджетное общеобразовательное учреждение \"Многопрофильный лицей №37\" Нижнекамского муниципального района Республики Татарстан"]
[56,"Мубаракшин","Динар","Рустемович","М",null,"2013-11-07","нет",4,4,14,50,"участник",null,"Хаметова Рамиля Раилевна","Муниципальное бюджетное общеобразовательное учреждение \"Многопрофильный лицей №37\" Нижнекамского муниципального района Республики Татарстан"]
[57,"Мингалимова","Эмилия","Линаровна","Ж",null,"2013-05-07","нет",4,4,14,50,"участник",null,"Корноухова Светлана Васильевна","Муниципальное бюджетное общеобразовательное учреждение \"Многопрофильный лицей №37\" Нижнекамского муниципального района Республики Татарстан"]
[58,"Шиншакова","Елизавета","Евгеньевна","Ж",null,"2013-11-20","нет",4,4,14,50,"участник",null,"Хаметова Рамиля Раилевна","Муниципальное бюджетное общеобразовательное учреждение \"Многопрофильный лицей №37\" Нижнекамского муниципального района Республики Татарстан"]
[59,"Валиев","Ильназ","Айдарович","М",null,"2013-06-08","нет",4,4,14,50,"участник",null,"Корноухова Светлана Васильевна","Муниципальное бюджетное общеобразовательное учреждение \"Многопрофильный лицей №37\" Нижнекамского муниципального района Республики Татарстан"]
[60,"Хузеев","Азамат","Марселевич","М",null,"2013-01-14","нет",4,4,14,50,"участник",null,"Хаметова Рамиля Раилевна","Муниципальное бюджетное общеобразовательное учреждение \"Многопрофильный лицей №37\" Нижнекамского муниципального района Республики Татарстан"]
[61,"Нуртдинова","Лиана","Вадимовна","Ж",null,"2013-05-04","нет",4,4,14,50,"участник",null,"Конева Валентина Викторовна","Муниципальное бюджетное общеобразовательное учреждение \"Многопрофильный лицей №37\" Нижнекамского муниципального района Республики Татарстан"]
[62,"Ибрагимов","Амир","Азатович","М",null,"2013-06-22","нет",4,4,14,50,"участник",null,"Конева Валентина Викторовна","Муниципальное бюджетное общеобразовательное учреждение \"Многопрофильный лицей №37\" Нижнекамского муниципального района Республики Татарстан"]
[63,"Комаров","Альберт","Андреевич","М",null,"2012-11-29","нет",4,4,14,50,"участник",null,"Конева Валентина Викторовна","Муниципальное бюджетное общеобразовательное учреждение \"Многопрофильный лицей №37\" Нижнекамского муниципального района Республики Татарстан"]
[64,"Нигматуллина","Марьям","Ренатовна","Ж",null,"2013-03-06","нет",4,4,14,50,"участник",null,"Конева Валентина Викторовна","Муниципальное бюджетное общеобразовательное учреждение \"Многопрофильный лицей №37\" Нижнекамского муниципального района Республики Татарстан"]
[65,"Фёдорова","Алиса","Павловна","Ж",null,"2013-03-15","нет",4,4,14,50,"участник",null,"Конева Валентина Викторовна","Муниципальное бюджетное общеобразовательное учреждение \"Многопрофильный лицей №37\" Нижнекамского муниципального района Республики Татарстан"]
[66,"Корчик","Демид","Денисович","М",null,"2013-08-30","нет",4,4,14,50,"участник",null,"Конева Валентина Викторовна","Муниципальное бюджетное общеобразовательное учреждение \"Многопрофильный лицей №37\" Нижнекамского муниципального района Республики Татарстан"]
[67,"Давлетова","Вероника","Денисовна","Ж",null,"2013-09-25","нет",4,4,12,50,"участник",null,"Хаметова Рамиля Раилевна","Муниципальное бюджетное общеобразовательное учреждение \"Многопрофильный лицей №37\" Нижнекамского муниципального района Республики Татарстан"]
[68,"Киямова","Аиша","Руслановна","Ж",null,"2013-03-07","нет",4,4,12,50,"участник",null,"Хаметова Рамиля Раилевна","Муниципальное бюджетное общеобразовательное учреждение \"Многопрофильный лицей №37\" Нижнекамского муниципального района Республики Татарстан"]
[69,"Калмыкова","Мирослава","Юрьевна","Ж",null,"2013-01-29","нет",4,4,11,50,"участник",null,"Корноухова Светлана Васильевна","Муниципальное бюджетное общеобразовательное учреждение \"Многопрофильный лицей №37\" Нижнекамского муниципального района Республики Татарстан"]
[70,"Сабитова","Сафина","Ильнуровна","Ж",null,"06.02.2013",{"$f":"'[2]Протокол ШЭ ВОШ по предмету ЛИТ'!H6","v":"нет"},{"$f":"'[2]Протокол ШЭ ВОШ по предмету ЛИТ'!I6","v":4},{"$f":"'[2]Протокол ШЭ ВОШ по предмету ЛИТ'!J6","v":4},{"$f":"'[2]Протокол ШЭ ВОШ по предмету ЛИТ'!K6","v":11},{"$f":"'[2]Протокол ШЭ ВОШ по предмету ЛИТ'!L6","v":50},{"$f":"'[2]Протокол ШЭ ВОШ по предмету ЛИТ'!M6","v":"участник"},null,{"$f":"'[2]Протокол ШЭ ВОШ по предмету ЛИТ'!O6","v":"Гильманова Ляйля Мукатдасовна"},"Муниципальное бюджетное общеобразовательное учреждение \"Многопрофильный лицей №37\" Нижнекамского муниципального района Республики Татарстан"]
[71,"Сайфуллина","Милана","Робертовна","Ж",null,"2013-01-17","нет",4,4,10,50,"участник",null,"Хаметова Рамиля Раилевна","Муниципальное бюджетное общеобразовательное учреждение \"Многопрофильный лицей №37\" Нижнекамского муниципального района Республики Татарстан"]
[72,"Хафизов","Аскар","Ренатович","М",null,"2013-08-23","нет",4,4,10,50,"участник",null,"Корноухова Светлана Васильевна","Муниципальное бюджетное общеобразовательное учреждение \"Многопрофильный лицей №37\" Нижнекамского муниципального района Республики Татарстан"]
[73,"Матросов","Дмитрий","Сергеевич","М",null,"2012-11-23","нет",4,4,9,50,"участник",null,"Корноухова Светлана Васильевна","Муниципальное бюджетное общеобразовательное учреждение \"Многопрофильный лицей №37\" Нижнекамского муниципального района Республики Татарстан"]
[74,"Миргаязов","Рияз","Линарисович","М",null,"22.02.2013",{"$f":"'[2]Протокол ШЭ ВОШ по предмету ЛИТ'!H7","v":"нет"},{"$f":"'[2]Протокол ШЭ ВОШ по предмету ЛИТ'!I7","v":4},{"$f":"'[2]Протокол ШЭ ВОШ по предмету ЛИТ'!J7","v":4},{"$f":"'[2]Протокол ШЭ ВОШ по предмету ЛИТ'!K7","v":9},{"$f":"'[2]Протокол ШЭ ВОШ по предмету ЛИТ'!L7","v":50},{"$f":"'[2]Протокол ШЭ ВОШ по предмету ЛИТ'!M7","v":"участник"},null,{"$f":"'[2]Протокол ШЭ ВОШ по предмету ЛИТ'!O7","v":"Гильманова Ляйля Мукатдасовна"},"Муниципальное бюджетное общеобразовательное учреждение \"Многопрофильный лицей №37\" Нижнекамского муниципального района Республики Татарстан"]
[75,"Шайхелмарданов","Амир","Рамелевич","М",null,"09.09.2013",{"$f":"'[2]Протокол ШЭ ВОШ по предмету ЛИТ'!H8","v":"нет"},{"$f":"'[2]Протокол ШЭ ВОШ по предмету ЛИТ'!I8","v":4},{"$f":"'[2]Протокол ШЭ ВОШ по предмету ЛИТ'!J8","v":4},{"$f":"'[2]Протокол ШЭ ВОШ по предмету ЛИТ'!K8","v":8},{"$f":"'[2]Протокол ШЭ ВОШ по предмету ЛИТ'!L8","v":50},{"$f":"'[2]Протокол ШЭ ВОШ по предмету ЛИТ'!M8","v":"участник"},null,{"$f":"'[2]Протокол ШЭ ВОШ по предмету ЛИТ'!O8","v":"Гильманова Ляйля Мукатдасовна"},"Муниципальное бюджетное общеобразовательное учреждение \"Многопрофильный лицей №37\" Нижнекамского муниципального района Республики Татарстан"]
[76,"Мулюкова","Лиана","Алмазовна","Ж",null,"25.02.2013",{"$f":"'[2]Протокол ШЭ ВОШ по предмету ЛИТ'!H9","v":"нет"},{"$f":"'[2]Протокол ШЭ ВОШ по предмету ЛИТ'!I9","v":4},{"$f":"'[2]Протокол ШЭ ВОШ по предмету ЛИТ'!J9","v":4},{"$f":"'[2]Протокол ШЭ ВОШ по предмету ЛИТ'!K9","v":7},{"$f":"'[2]Протокол ШЭ ВОШ по предмету ЛИТ'!L9","v":50},{"$f":"'[2]Протокол ШЭ ВОШ по предмету ЛИТ'!M9","v":"участник"},null,{"$f":"'[2]Протокол ШЭ ВОШ по предмету ЛИТ'!O9","v":"Гильманова Ляйля Мукатдасовна"},"Муниципальное бюджетное общеобразовательное учреждение \"Многопрофильный лицей №37\" Нижнекамского муниципального района Республики Татарстан"]
[77,"Шавалеева","Диляра","Ильназовна","Ж",null,"02.05.2013",{"$f":"'[2]Протокол ШЭ ВОШ по предмету ЛИТ'!H10","v":"нет"},{"$f":"'[2]Протокол ШЭ ВОШ по предмету ЛИТ'!I10","v":4},{"$f":"'[2]Протокол ШЭ ВОШ по предмету ЛИТ'!J10","v":4},{"$f":"'[2]Протокол ШЭ ВОШ по предмету ЛИТ'!K10","v":7},{"$f":"'[2]Протокол ШЭ ВОШ по предмету ЛИТ'!L10","v":50},{"$f":"'[2]Протокол ШЭ ВОШ по предмету ЛИТ'!M10","v":"участник"},null,{"$f":"'[2]Протокол ШЭ ВОШ по предмету ЛИТ'!O10","v":"Гильманова Ляйля Мукатдасовна"},"Муниципальное бюджетное общеобразовательное учреждение \"Многопрофильный лицей №37\" Нижнекамского муниципального района Республики Татарстан"]
[78,"Тазеев","Карим","Разилевич","М",null,"19.02.2013",{"$f":"'[2]Протокол ШЭ ВОШ по предмету ЛИТ'!H11","v":"нет"},{"$f":"'[2]Протокол ШЭ ВОШ по предмету ЛИТ'!I11","v":4},{"$f":"'[2]Протокол ШЭ ВОШ по предмету ЛИТ'!J11","v":4},{"$f":"'[2]Протокол ШЭ ВОШ по предмету ЛИТ'!K11","v":7},{"$f":"'[2]Протокол ШЭ ВОШ по предмету ЛИТ'!L11","v":50},{"$f":"'[2]Протокол ШЭ ВОШ по предмету ЛИТ'!M11","v":"участник"},null,{"$f":"'[2]Протокол ШЭ ВОШ по предмету ЛИТ'!O11","v":"Гильманова Ляйля Мукатдасовна"},"Муниципальное бюджетное общеобразовательное учреждение \"Многопрофильный лицей №37\" Нижнекамского муниципального района Республики Татарстан"]
[79,"Суходоев","Кирилл","Павлович","М",null,"2008-12-28","нет",8,8,42,50,"победитель",null,"Нуретдинов Артур Ильдарович","Муниципальное бюджетное общеобразовательное учреждение \"Многопрофильный лицей №37\" Нижнекамского муниципального района Республики Татарстан"]
[80,"Абдуллин","Эмир","Эльмарович","М",null,"2009-09-03","нет",8,8,39,50,"призер",null,"Нуретдинов Артур Ильдарович","Муниципальное бюджетное общеобразовательное учреждение \"Многопрофильный лицей №37\" Нижнекамского муниципального района Республики Татарстан"]
[81,"Зяббаров","Дамир","Айратович","М",null,"2009-10-15","нет",8,8,35,50,"призер",null,"Нуретдинов Артур Ильдарович","Муниципальное бюджетное общеобразовательное учреждение \"Многопрофильный лицей №37\" Нижнекамского муниципального района Республики Татарстан"]
[82,"Мухлисов","Айнур","Ренатович","М",null,"2009-08-13","нет",8,8,34,50,"участник",null,"Нуретдинов Артур Ильдарович","Муниципальное бюджетное общеобразовательное учреждение \"Многопрофильный лицей №37\" Нижнекамского муниципального района Республики Татарстан"]
[83,"Хоснуллин","Камиль","Ильшатович","М",null,"2009-05-18","нет",8,8,30,50,"участник",null,"Нуретдинов Артур Ильдарович","Муниципальное бюджетное общеобразовательное учреждение \"Многопрофильный лицей №37\" Нижнекамского муниципального района Республики Татарстан"]
[84,"Ибрагимов","Данис","Азатович","М",null,"2009-07-22","нет",8,8,27,50,"участник",null,"Нуретдинов Артур Ильдарович","Муниципальное бюджетное общеобразовательное учреждение \"Многопрофильный лицей №37\" Нижнекамского муниципального района Республики Татарстан"]
[85,"Исхакова","Юлия","Фёдоровна","Ж",null,"2009-08-26","нет",8,8,26,50,"участник",null,"Нуретдинов Артур Ильдарович","Муниципальное бюджетное общеобразовательное учреждение \"Многопрофильный лицей №37\" Нижнекамского муниципального района Республики Татарстан"]
[86,"Галкина","Дарья","Алексаедровна","Ж",null,"2009-10-29","нет",8,8,26,50,"участник",null,"Нуретдинов Артур Ильдарович","Муниципальное бюджетное общеобразовательное учреждение \"Многопрофильный лицей №37\" Нижнекамского муниципального района Республики Татарстан"]
[87,"Донской","Дмитрий","Максимович","М",null,"2008-09-13","нет",8,8,24,50,"участник",null,"Нуретдинов Артур Ильдарович","Муниципальное бюджетное общеобразовательное учреждение \"Многопрофильный лицей №37\" Нижнекамского муниципального района Республики Татарстан"]
[88,"Французов","Максим","Владимирович","М",null,"2009-11-23","нет",8,8,21,50,"участник",null,"Нуретдинов Артур Ильдарович","Муниципальное бюджетное общеобразовательное учреждение \"Многопрофильный лицей №37\" Нижнекамского муниципального района Республики Татарстан"]
[89,"Павлов","Григорий","Иванович","М",null,"2008-10-10","нет",8,8,13,50,"участник",null,"Нуретдинов Артур Ильдарович","Муниципальное бюджетное общеобразовательное учреждение \"Многопрофильный лицей №37\" Нижнекамского муниципального района Республики Татарстан"]
[90,"Зубаиров ","Камиль","Ренатович","М",null,"2008-07-01","нет",9,9,42,50,"Победитель",null,"Хаметов Зульфир Зельфирович","Муниципальное бюджетное общеобразовательное учреждение \"Многопрофильный лицей №37\" Нижнекамского муниципального района Республики Татарстан"]
[91,"Яфаров","Данил","Рафисович","М",null,"2008-03-25","нет",9,9,40,50,"призер",null,"Хаметов Зульфир Зельфирович","Муниципальное бюджетное общеобразовательное учреждение \"Многопрофильный лицей №37\" Нижнекамского муниципального района Республики Татарстан"]
[92,"Буреев","Илья","Евгеньевич","М",null,"2008-08-14","нет",9,9,18,50,"призер",null,"Хаметов Зульфир Зельфирович","Муниципальное бюджетное общеобразовательное учреждение \"Многопрофильный лицей №37\" Нижнекамского муниципального района Республики Татарстан"]
[93,"Гайнуллин","Ралиф","Русланович","М",null,"2008-12-30","нет",9,9,17,50,"участник",null,"Хаметов Зульфир Зельфирович","Муниципальное бюджетное общеобразовательное учреждение \"Многопрофильный лицей №37\" Нижнекамского муниципального района Республики Татарстан"]
[94,"Лапко","Никита","Сергеевич","М",null,"2008-10-08","нет",9,9,16,50,"участник",null,"Хаметов Зульфир Зельфирович","Муниципальное бюджетное общеобразовательное учреждение \"Многопрофильный лицей №37\" Нижнекамского муниципального района Республики Татарстан"]
[95,"Никифорова","Карина","Денисовна","Ж",null,"2008-07-17","нет",9,9,15,50,"участник",null,"Хаметов Зульфир Зельфирович","Муниципальное бюджетное общеобразовательное учреждение \"Многопрофильный лицей №37\" Нижнекамского муниципального района Республики Татарстан"]
[96,"Милицкая","Валерия","Александровна","Ж",null,"2008-02-14","нет",9,9,15,50,"участник",null,"Хаметов Зульфир Зельфирович","Муниципальное бюджетное общеобразовательное учреждение \"Многопрофильный лицей №37\" Нижнекамского муниципального района Республики Татарстан"]
[97,"Хусаинов ","Бахтияр","Рустемович","М",null,"2008-05-28","нет",9,9,10,50,"участник",null,"Хаметов Зульфир Зельфирович","Муниципальное бюджетное общеобразовательное учреждение \"Многопрофильный лицей №37\" Нижнекамского муниципального района Республики Татарстан"]
[98,"Тазов","Богдан","Витальевич","М",null,"2008-05-03","нет",9,9,9,50,"участник",null,"Хаметов Зульфир Зельфирович","Муниципальное бюджетное общеобразовательное учреждение \"Многопрофильный лицей №37\" Нижнекамского муниципального района Республики Татарстан"]
[99,"Шикшина","Анжелика","Владимировна","Ж",null,"2008-10-20","нет",9,9,9,50,"участник",null,"Хаметов Зульфир Зельфирович","Муниципальное бюджетное общеобразовательное учреждение \"Многопрофильный лицей №37\" Нижнекамского муниципального района Республики Татарстан"]
[100,"Васильева","Дарья","Викторовна","Ж",null,"21.01.2006","нет",11,11,45,50,"Победитель",null,"Магомедов Руслан Гаябекович","Муниципальное бюджетное общеобразовательное учреждение \"Многопрофильный лицей №37\" Нижнекамского муниципального района Республики Татарстан"]
[101,"Юртова","Анастасия","Петровна","Ж",null,"20.10.2006","нет",11,11,44,50,"призер",null,"Магомедов Руслан Гаябекович","Муниципальное бюджетное общеобразовательное учреждение \"Многопрофильный лицей №37\" Нижнекамского муниципального района Республики Татарстан"]
[102,"Музафарова","Камиля","Ленаровна","Ж",null,"03.10.2006","нет",11,11,39,50,"призер",null,"Магомедов Руслан Гаябекович","Муниципальное бюджетное общеобразовательное учреждение \"Многопрофильный лицей №37\" Нижнекамского муниципального района Республики Татарстан"]
[103,"Исхакова","Ева","Камилевна","Ж",null,"27.04.2006","нет",11,11,28,50,"участник",null,"Магомедов Руслан Гаябекович","Муниципальное бюджетное общеобразовательное учреждение \"Многопрофильный лицей №37\" Нижнекамского муниципального района Республики Татарстан"]
[104,"Кузнецов","Никита","Артемович","М",null,"18.07.2006","нет",11,11,13,50,"участник",null,"Магомедов Руслан Гаябекович","Муниципальное бюджетное общеобразовательное учреждение \"Многопрофильный лицей №37\" Нижнекамского муниципального района Республики Татарстан"]
[105,"Ашрафзянова","Камилла","Руслановна","Ж",null,"18.12.2005","нет",11,11,10,50,"участник",null,"Магомедов Руслан Гаябекович","Муниципальное бюджетное общеобразовательное учреждение \"Многопрофильный лицей №37\" Нижнекамского муниципального района Республики Татарстан"]
[106,"Садыкова","Самира","Ренатовна","Ж",null,"22.09.2006","нет",11,11,8,50,"участник",null,"Магомедов Руслан Гаябекович","Муниципальное бюджетное общеобразовательное учреждение \"Многопрофильный лицей №37\" Нижнекамского муниципального района Республики Татарстан"]
[107,"Мингалимов","Раиль","Рамилевич","М",null,"24.11.2005","нет",11,11,7,50,"участник",null,"Магомедов Руслан Гаябекович","Муниципальное бюджетное общеобразовательное учреждение \"Многопрофильный лицей №37\" Нижнекамского муниципального района Республики Татарстан"]
[108,"Шарафиев","Айнур","Назилевич","М",null,"16.06.2006","нет",11,11,6,50,"участник",null,"Магомедов Руслан Гаябекович","Муниципальное бюджетное общеобразовательное учреждение \"Многопрофильный лицей №37\" Нижнекамского муниципального района Республики Татарстан"]
[109,"Марков","Виктор","Валерьевич","М",null,"07.09.2006","нет",11,11,3,50,"учасник",null,"Магомедов Руслан Гаябекович","Муниципальное бюджетное общеобразовательное учреждение \"Многопрофильный лицей №37\" Нижнекамского муниципального района Республики Татарстан"]
[110,"Плеханов","Олег","Владимирович","М",null,"29.05.2006","нет",11,11,37,50,"участник",null,"Магомедов Руслан Гаябекович","Муниципальное бюджетное общеобразовательное учреждение \"Многопрофильный лицей №37\" Нижнекамского муниципального района Республики Татарстан"]
{"$rows_empty":16}
[{"$nulls":4},14,null,13]
[{"$nulls":4},19,null,31]
[{"$nulls":4},9,null,2]
[{"$nulls":4},7,null,3]
[{"$nulls":4},5,null,6]
[]
[{"$nulls":4},{"$f":"SUM(E127:E131)","v":54},null,{"$f":"SUM(G127:G131)","v":55}]